fUSD/lending_fUSD_20250623
["ID","MTS","AMOUNT","RATE_DAILY","PERIOD"]
[367197268,1750698649217,-490.0,0.00022996,2]
[367197269,1750698649227,-490.0,0.00022996,2]
[367197270,1750698649237,-490.0,0.00022996,2]
[367197271,1750698649248,-490.0,0.00022996,2]
[367197272,1750698649259,-490.0,0.00022996,2]
[367197273,1750698649269,-490.0,0.00022996,2]
[367197274,1750698649280,-490.0,0.00022996,2]
[367197275,1750698649291,-982.4,0.00022996,2]
[367197276,1750698649302,-490.0,0.00022996,2]
[367197277,1750698649313,-490.0,0.00022996,2]
[367197278,1750698649326,-500.0,0.00022996,2]
[367197279,1750698649336,-288.315444,0.00022996,7]
[367197280,1750698649346,-683.19,0.00022996,2]
[367197281,1750698649356,-490.0,0.00022996,2]
[367197282,1750698649367,-490.0,0.00022996,2]
[367197283,1750698649377,-490.0,0.00022996,2]
[367197284,1750698649387,-490.0,0.00022996,2]
[367197285,1750698649398,-490.0,0.00022996,2]
[367197286,1750698649408,-1734.24,0.00022996,2]
[367197287,1750698649419,-2397.5,0.00022996,2]
[367197288,1750698649429,-665.68,0.00022996,2]
[367197289,1750698649439,-1068.53,0.00022996,2]
[367197290,1750698649449,-963.54,0.00022996,2]
[367197291,1750698649459,-490.0,0.00022996,2]
[367197292,1750698649468,-490.0,0.00022996,2]
[367197293,1750698649478,-1365.65,0.00022996,2]
[367197294,1750698649488,-1251.07,0.00022996,2]
[367197295,1750698649499,-500.0,0.00022996,2]
[367197296,1750698649509,-1403.96,0.00022996,2]
[367197297,1750698649519,-151.0,0.00022996,7]
[367197298,1750698649530,-500.0,0.00022996,2]
[367197299,1750698649540,-851.44,0.00022996,2]
[367197300,1750698649550,-500.0,0.00022996,2]
[367197301,1750698649560,-537.5,0.00022996,2]
[367197302,1750698649570,-490.0,0.00022996,2]
[367197303,1750698649580,-500.0,0.00022996,2]
[367197304,1750698649591,-500.0,0.00022996,2]
[367197305,1750698649601,-608.03,0.00022996,2]
[367197306,1750698649611,-151.0,0.00022996,7]
[367197307,1750698649621,-151.0,0.00022996,7]
[367197308,1750698649631,-151.0,0.00022996,7]
[367197309,1750698649641,-1608.07,0.00022996,2]
[367197310,1750698649652,-1608.07,0.00022996,2]
[367197311,1750698649662,-500.0,0.00022996,2]
[367197312,1750698649673,-500.0,0.00022996,2]
[367197313,1750698649683,-1435.25,0.00022996,2]
[367197314,1750698649693,-1435.25,0.00022996,2]
[367197315,1750698649703,-943.07,0.00022996,2]
[367197316,1750698649713,-500.0,0.00022996,2]
[367197317,1750698649724,-500.0,0.00022996,2]
[367197318,1750698649734,-1015.78,0.00022996,2]
[367197319,1750698649745,-500.0,0.00022997,2]
[367197320,1750698649755,-500.0,0.00022997,2]
[367197321,1750698649765,-500.0,0.00022997,2]
[367197322,1750698649776,-500.0,0.00022997,2]
[367197323,1750698649787,-500.0,0.00022997,2]
[367197324,1750698649797,-500.0,0.00022997,2]
[367197325,1750698649808,-1608.07,0.00022997,2]
[367197326,1750698649821,-500.0,0.00022997,2]
[367197327,1750698649832,-1435.25,0.00022997,2]
[367197328,1750698649842,-500.0,0.00022997,2]
[367197329,1750698649853,-500.0,0.00022998,2]
[367197330,1750698649864,-330.1774586,0.00022998,2]
[367197331,1750698649875,-7144.72,0.00023,2]
[367197332,1750698649885,-151.0,0.00023005,7]
[367197333,1750698649895,-208.68472324,0.00023015,2]
[367197334,1750698649906,-150.0,0.00023045,2]
[367197335,1750698649916,-608.03,0.0002305,2]
[367197336,1750698649926,-648.39,0.00023076,2]
[367197337,1750698649937,-20818.85430247,0.00023077,2]
[367197338,1750698649947,-151.0,0.00023077,7]
[367197339,1750698649957,-151.0,0.00023077,7]
[367197340,1750698649968,-151.0,0.00023077,7]
[367197341,1750698649979,-665.0,0.0002309,2]
[367197342,1750698649989,-150.0,0.00023095,2]
[367197343,1750698650000,-150.0,0.00023097,2]
[367197344,1750698650011,-285.32504675,0.00023136,2]
[367197345,1750698650022,-150.0,0.00023143,2]
[367197346,1750698650035,-151.0,0.00023168,7]
[367197347,1750698650046,-20818.85430247,0.00023168,2]
[367197348,1750698650056,-150.0,0.00023193,2]
[367197349,1750698650065,-10000.0,0.000232,5]
[367197350,1750698650079,-200.0,0.00023225,2]
[367197351,1750698650089,-6644.0,0.00023233,2]
[367197352,1750698650099,-6619.0,0.00023233,2]
[367197353,1750698650109,-443.0,0.00023233,2]
[367197354,1750698650119,-48273.0,0.00023233,2]
[367197355,1750698650130,-1728.498739,0.00023233,7]
[367197356,1750698650141,-1728.498739,0.00023233,7]
[367197357,1750698650150,-151.0,0.00023233,7]
[367197358,1750698650160,-151.0,0.00023233,7]
[367197359,1750698650171,-153.225745,0.00023233,7]
[367197360,1750698650181,-151.0,0.00023233,7]
[367197361,1750698650191,-151.0,0.00023233,7]
[367197362,1750698650201,-151.0,0.00023241,7]
[367197363,1750698650211,-30000.0,0.00023241,2]
[367197364,1750698650221,-150.0,0.00023247,2]
[367197365,1750698650231,-20818.85430247,0.0002326,2]
[367197366,1750698650241,-151.0,0.0002326,7]
[367197367,1750698650250,-150.0,0.0002326,4]
[367197368,1750698650260,-150.0,0.0002326,4]
[367197369,1750698650270,-728.95,0.00023262,2]
[367197370,1750698650280,-490.0,0.00023262,2]
[367197371,1750698650291,-1326.54,0.00023262,2]
[367197372,1750698650301,-558.39,0.00023262,2]
[367197373,1750698650311,-1102.83,0.00023262,2]
[367197374,1750698650323,-605.35,0.00023262,2]
[367197375,1750698650334,-490.0,0.00023266,2]
[367197376,1750698650344,-490.0,0.00023266,2]
[367197377,1750698650354,-490.0,0.00023266,2]
[367197378,1750698650364,-480.16843509,0.00023266,2]
[367197379,1750698650375,-356.87215035,0.00023266,2]
[367197380,1750698650385,-648.39,0.00023266,2]
[367197381,1750698650395,-490.0,0.00023267,2]
[367197382,1750698650405,-258.56526153,0.00023267,2]
[367197383,1750698650416,-490.0,0.00023267,2]
[367197384,1750698650427,-490.0,0.00023267,2]
[367197385,1750698650437,-490.0,0.00023267,2]
[367197386,1750698650447,-490.0,0.00023267,2]
[367197387,1750698650457,-490.0,0.00023267,2]
[367197388,1750698650467,-490.0,0.00023267,2]
[367197389,1750698650477,-490.0,0.00023267,2]
[367197390,1750698650487,-490.0,0.00023267,2]
[367197391,1750698650498,-490.0,0.00023267,2]
[367197392,1750698650508,-667.69,0.00023267,2]
[367197393,1750698650520,-587.11,0.00023267,2]
[367197394,1750698650530,-646.96,0.00023267,2]
[367197395,1750698650540,-472.92771618,0.00023267,2]
[367197396,1750698650549,-563.63,0.00023267,2]
[367197397,1750698650561,-490.0,0.00023267,2]
[367197398,1750698650573,-639.66,0.00023267,2]
[367197399,1750698650583,-727.63,0.00023267,2]
[367197400,1750698650593,-269.25861415,0.00023267,2]
[367197401,1750698650603,-688.37,0.00023267,2]
[367197402,1750698650613,-479.82999058,0.00023267,2]
[367197403,1750698650624,-679.62,0.00023267,2]
[367197404,1750698650634,-1392.01,0.00023267,2]
[367197405,1750698650644,-1071.03,0.00023267,2]
[367197406,1750698650654,-490.0,0.00023267,2]
[367197407,1750698650664,-655.34,0.00023267,2]
[367197408,1750698650674,-490.0,0.00023267,2]
[367197409,1750698650684,-490.0,0.00023267,2]
[367197410,1750698650695,-406.82,0.00023267,2]
[367197411,1750698650705,-490.0,0.00023267,2]
[367197412,1750698650721,-490.0,0.00023267,2]
[367197413,1750698650730,-608.99,0.00023267,2]
[367197414,1750698650741,-490.0,0.00023267,2]
[367197415,1750698650751,-490.0,0.00023267,2]
[367197416,1750698650761,-490.0,0.00023267,2]
[367197417,1750698650771,-157.70934721,0.00023267,2]
[367197418,1750698650781,-1379.66,0.00023267,2]
[367197419,1750698650790,-575.11802411,0.00023267,2]
[367197420,1750698650800,-611.24,0.00023267,2]
[367197421,1750698650811,-669.98,0.00023267,2]
[367197422,1750698650823,-651.34,0.00023267,2]
[367197423,1750698650834,-1147.78,0.00023267,2]
[367197424,1750698650844,-490.0,0.00023267,2]
[367197425,1750698650854,-490.0,0.00023267,2]
[367197426,1750698650865,-490.0,0.00023267,2]
[367197427,1750698650875,-848.13,0.00023267,2]
[367197428,1750698650885,-490.0,0.00023267,2]
[367197429,1750698650895,-490.11,0.00023267,2]
[367197430,1750698650905,-491.56,0.00023267,2]
[367197431,1750698650915,-490.0,0.00023267,2]
[367197432,1750698650925,-535.75,0.00023267,2]
[367197433,1750698651237,-710.24,0.00023267,2]
[367197434,1750698651248,-1005.59,0.00023267,2]
[367197435,1750698651258,-490.0,0.00023267,2]
[367197436,1750698651267,-490.0,0.00023267,2]
[367197437,1750698651277,-1093.69,0.00023267,2]
[367197438,1750698651286,-490.0,0.00023267,2]
[367197439,1750698651295,-495.46,0.00023267,2]
[367197440,1750698651305,-1026.37,0.00023267,2]
[367197441,1750698651314,-1042.94,0.00023267,2]
[367197442,1750698651328,-490.0,0.00023267,2]
[367197443,1750698651337,-490.0,0.00023267,2]
[367197444,1750698651347,-680.85,0.00023267,2]
[367197445,1750698651356,-999.16,0.00023267,2]
[367197446,1750698651366,-667.22,0.00023267,2]
[367197447,1750698651376,-693.98,0.00023267,2]
[367197448,1750698651387,-1158.24,0.00023267,2]
[367197449,1750698651397,-490.0,0.00023267,2]
[367197450,1750698651408,-1114.67,0.00023267,2]
[367197451,1750698651418,-796.17,0.00023267,2]
[367197452,1750698651428,-636.84483719,0.00023267,2]
[367197453,1750698651439,-490.0,0.00023267,2]
[367197454,1750698651448,-908.82,0.00023267,2]
[367197455,1750698651459,-588.97,0.00023267,2]
[367197456,1750698651468,-917.59,0.00023267,2]
[367197457,1750698651478,-821.03,0.00023267,2]
[367197458,1750698651488,-490.0,0.00023267,2]
[367197459,1750698651498,-1290.1,0.00023267,2]
[367197460,1750698651508,-490.0,0.00023267,2]
[367197461,1750698651518,-795.86,0.00023267,2]
[367197462,1750698651527,-577.68,0.00023267,2]
[367197463,1750698651537,-1286.37,0.00023267,2]
[367197464,1750698651546,-274.67188617,0.00023267,2]
[367197465,1750698651556,-490.0,0.00023267,2]
[367197466,1750698651566,-891.33,0.00023267,2]
[367197467,1750698651584,-490.0,0.00023267,2]
[367197468,1750698651594,-490.0,0.00023267,2]
[367197469,1750698651603,-547.12,0.00023267,2]
[367197470,1750698651613,-607.15,0.00023267,2]
[367197471,1750698651623,-915.13,0.00023267,2]
[367197472,1750698651633,-490.0,0.00023267,2]
[367197473,1750698651642,-490.0,0.00023267,2]
[367197474,1750698651652,-490.0,0.00023267,2]
[367197475,1750698651662,-490.0,0.00023267,2]
[367197476,1750698651671,-519.94,0.00023267,2]
[367197477,1750698651681,-827.87,0.00023267,2]
[367197478,1750698651691,-490.0,0.00023267,2]
[367197479,1750698651701,-490.0,0.00023267,2]
[367197480,1750698651710,-490.0,0.00023267,2]
[367197481,1750698651722,-528.13,0.00023267,2]
[367197482,1750698651732,-735.18,0.00023267,2]
[367197483,1750698651742,-490.0,0.00023267,2]
[367197484,1750698651752,-490.0,0.00023267,2]
[367197485,1750698651761,-490.0,0.00023267,2]
[367197486,1750698651771,-362.68957738,0.00023267,2]
[367197487,1750698651780,-241.88761965,0.00023267,2]
[367197488,1750698651790,-490.0,0.00023267,2]
[367197489,1750698651799,-503.9,0.00023267,2]
[367197490,1750698651809,-496.8591531,0.00023267,2]
[367197491,1750698651826,-868.27,0.00023267,2]
[367197492,1750698651839,-577.29,0.00023267,2]
[367197493,1750698651851,-490.0,0.00023267,2]
[367197494,1750698651861,-490.0,0.00023267,2]
[367197495,1750698651871,-490.0,0.00023267,2]
[367197496,1750698651881,-490.0,0.00023267,2]
[367197497,1750698651891,-532.41,0.00023267,2]
[367197498,1750698651902,-713.81,0.00023267,2]
[367197499,1750698651911,-490.0,0.00023267,2]
[367197500,1750698651921,-639.62,0.00023267,2]
[367197501,1750698651930,-490.0,0.00023267,2]
[367197502,1750698651939,-490.0,0.00023267,2]
[367197503,1750698651949,-637.81815607,0.00023267,2]
[367197504,1750698651959,-490.0,0.00023267,2]
[367197505,1750698651969,-490.0,0.00023267,2]
[367197506,1750698651978,-503.62,0.00023267,2]
[367197507,1750698651988,-490.0,0.00023267,2]
[367197508,1750698651997,-1449.54,0.00023267,2]
[367197509,1750698652006,-490.0,0.00023267,2]
[367197510,1750698652016,-2103.74,0.00023267,2]
[367197511,1750698652027,-1502.01,0.00023267,2]
[367197512,1750698652039,-490.0,0.00023267,2]
[367197513,1750698652048,-490.0,0.00023267,2]
[367197514,1750698652057,-490.0,0.00023267,2]
[367197515,1750698652067,-490.0,0.00023267,2]
[367197516,1750698652081,-1281.35,0.00023267,2]
[367197517,1750698652091,-490.0,0.00023267,2]
[367197518,1750698652100,-490.0,0.00023267,2]
[367197519,1750698652109,-1013.96,0.00023267,2]
[367197520,1750698652119,-978.16,0.00023267,2]
[367197521,1750698652129,-706.03,0.00023267,2]
[367197522,1750698652139,-490.0,0.00023267,2]
[367197523,1750698652150,-151.0,0.00023267,7]
[367197524,1750698652159,-490.0,0.00023267,2]
[367197525,1750698652169,-490.0,0.00023267,2]
[367197526,1750698652178,-490.0,0.00023267,2]
[367197527,1750698652188,-490.0,0.00023267,2]
[367197528,1750698652197,-524.07454754,0.00023267,2]
[367197529,1750698652207,-490.0,0.00023267,2]
[367197530,1750698652217,-490.0,0.00023267,2]
[367197531,1750698652227,-851.97,0.00023267,2]
[367197532,1750698652237,-490.0,0.00023267,2]
[367197533,1750698652247,-490.0,0.00023267,2]
[367197534,1750698652257,-490.0,0.00023267,2]
[367197535,1750698652266,-490.0,0.00023267,2]
[367197536,1750698652276,-968.94,0.00023267,2]
[367197537,1750698652285,-490.0,0.00023267,2]
[367197538,1750698652295,-1305.56,0.00023267,2]
[367197539,1750698652305,-605.32,0.00023267,2]
[367197540,1750698652314,-1523.12,0.00023267,2]
[367197541,1750698652328,-496.3,0.00023267,2]
[367197542,1750698652337,-596.62,0.00023267,2]
[367197543,1750698652347,-490.0,0.00023267,2]
[367197544,1750698652356,-490.0,0.00023267,2]
[367197545,1750698652366,-490.0,0.00023267,2]
[367197546,1750698652375,-490.0,0.00023267,2]
[367197547,1750698652385,-1231.23,0.00023267,2]
[367197548,1750698652394,-490.0,0.00023267,2]
[367197549,1750698652404,-640.93,0.00023267,2]
[367197550,1750698652414,-490.0,0.00023267,2]
[367197551,1750698652424,-1091.48,0.00023267,2]
[367197552,1750698652433,-490.0,0.00023267,2]
[367197553,1750698652443,-736.66,0.00023267,2]
[367197554,1750698652452,-1000.0,0.00023267,2]
[367197555,1750698652461,-151.0,0.00023267,7]
[367197556,1750698652471,-151.0,0.00023267,7]
[367197557,1750698652480,-490.0,0.00023267,2]
[367197558,1750698652490,-490.0,0.00023267,2]
[367197559,1750698652499,-1296.4,0.00023267,2]
[367197560,1750698652508,-490.0,0.00023267,2]
[367197561,1750698652518,-687.53,0.00023267,2]
[367197562,1750698652528,-577.42,0.00023267,2]
[367197563,1750698652537,-490.0,0.00023267,2]
[367197564,1750698652547,-994.99,0.00023267,2]
[367197565,1750698652557,-462.56616175,0.00023267,2]
[367197566,1750698652567,-1465.11,0.00023267,2]
[367197567,1750698652578,-151.0,0.00023267,7]
[367197568,1750698652587,-490.0,0.00023267,2]
[367197569,1750698652597,-659.98,0.00023267,2]
[367197570,1750698652607,-1163.27,0.00023267,2]
[367197571,1750698652617,-1296.64,0.00023267,2]
[367197572,1750698652627,-490.0,0.00023267,2]
[367197573,1750698652637,-805.19,0.00023267,2]
[367197574,1750698652646,-490.0,0.00023267,2]
[367197575,1750698652656,-490.0,0.00023267,2]
[367197576,1750698652665,-798.6,0.00023267,2]
[367197577,1750698652675,-961.74,0.00023267,2]
[367197578,1750698652685,-490.0,0.00023267,2]
[367197579,1750698652694,-490.0,0.00023267,2]
[367197580,1750698652704,-490.0,0.00023267,2]
[367197581,1750698652714,-490.0,0.00023267,2]
[367197582,1750698652723,-586.53,0.00023267,2]
[367197583,1750698652733,-711.71,0.00023267,2]
[367197584,1750698652742,-490.0,0.00023267,2]
[367197585,1750698652752,-1316.01,0.00023267,2]
[367197586,1750698652762,-490.0,0.00023267,2]
[367197587,1750698652771,-2071.77,0.00023267,2]
[367197588,1750698652781,-490.0,0.00023267,2]
[367197589,1750698652791,-490.0,0.00023267,2]
[367197590,1750698652801,-490.0,0.00023267,2]
[367197591,1750698652810,-490.0,0.00023267,2]
[367197592,1750698652820,-707.92,0.00023267,2]
[367197593,1750698652830,-490.0,0.00023267,2]
[367197594,1750698652839,-988.12,0.00023267,2]
[367197595,1750698652849,-1316.04,0.00023267,2]
[367197596,1750698652859,-490.0,0.00023267,2]
[367197597,1750698652869,-490.0,0.00023267,2]
[367197598,1750698652879,-490.0,0.00023267,2]
[367197599,1750698652888,-943.07,0.00023267,2]
[367197600,1750698652898,-943.07,0.00023267,2]
[367197601,1750698652909,-1649.14,0.00023267,2]
[367197602,1750698652918,-677.43,0.00023267,2]
[367197603,1750698652928,-490.0,0.00023267,2]
[367197604,1750698652937,-2574.3,0.00023267,2]
[367197605,1750698652946,-1451.84,0.00023267,2]
[367197606,1750698652957,-1302.67,0.00023267,2]
[367197607,1750698652966,-761.66,0.00023267,2]
[367197608,1750698652976,-671.45,0.00023267,2]
[367197609,1750698652986,-1201.92,0.00023267,2]
[367197610,1750698652995,-490.0,0.00023267,2]
[367197611,1750698653005,-490.0,0.00023267,2]
[367197612,1750698653014,-490.0,0.00023267,2]
[367197613,1750698653024,-490.0,0.00023267,2]
[367197614,1750698653037,-740.56,0.00023267,2]
[367197615,1750698653047,-490.0,0.00023267,2]
[367197616,1750698653056,-490.0,0.00023267,2]
[367197617,1750698653066,-1463.6,0.00023267,2]
[367197618,1750698653079,-1384.87,0.00023267,2]
[367197619,1750698653088,-1565.89,0.00023267,2]
[367197620,1750698653098,-490.0,0.00023267,2]
[367197621,1750698653111,-581.5,0.00023267,2]
[367197622,1750698653121,-1274.36,0.00023267,2]
[367197623,1750698653131,-3207.81,0.00023267,2]
[367197624,1750698653141,-490.0,0.00023267,2]
[367197625,1750698653151,-1136.75,0.00023267,2]
[367197626,1750698653161,-490.0,0.00023267,2]
[367197627,1750698653170,-508.28,0.00023267,2]
[367197628,1750698653180,-1015.78,0.00023267,2]
[367197629,1750698653190,-1015.78,0.00023267,2]
[367197630,1750698653200,-490.0,0.00023267,2]
[367197631,1750698653211,-645.34,0.00023267,2]
[367197632,1750698653221,-1082.91,0.00023267,2]
[367197633,1750698653232,-570.24,0.00023267,2]
[367197634,1750698653241,-3216.41,0.00023267,2]
[367197635,1750698653251,-1198.83,0.00023267,2]
[367197636,1750698653264,-777.62,0.00023267,2]
[367197637,1750698653274,-3260.51,0.00023267,2]
[367197638,1750698653284,-642.42,0.00023267,2]
[367197639,1750698653294,-1064.93,0.00023267,2]
[367197640,1750698653304,-2313.09,0.00023267,2]
[367197641,1750698653314,-690.62,0.00023267,2]
[367197642,1750698653330,-490.0,0.00023267,2]
[367197643,1750698653340,-490.0,0.00023267,2]
[367197644,1750698653350,-429.81618198,0.00023267,2]
[367197645,1750698653360,-1610.22,0.00023267,2]
[367197646,1750698653369,-3410.48,0.00023267,2]
[367197647,1750698653378,-490.0,0.00023267,2]
[367197648,1750698653388,-490.0,0.00023267,2]
[367197649,1750698653398,-1189.88,0.00023267,2]
[367197650,1750698653408,-503.76,0.00023267,2]
[367197651,1750698653418,-1292.27,0.00023267,2]
[367197652,1750698653428,-1272.73,0.00023267,2]
[367197653,1750698653438,-1305.05,0.00023267,2]
[367197654,1750698653448,-281.75851069,0.00023267,2]
[367197655,1750698653458,-212.99967281,0.00023267,2]
[367197656,1750698653468,-490.0,0.00023267,2]
[367197657,1750698653477,-5009.26,0.00023267,2]
[367197658,1750698653487,-151.0,0.00023267,7]
[367197659,1750698653496,-802.99,0.00023267,2]
[367197660,1750698653506,-1417.36,0.00023267,2]
[367197661,1750698653515,-534.32,0.00023267,2]
[367197662,1750698653524,-1871.08,0.00023267,2]
[367197663,1750698653534,-490.0,0.00023267,2]
[367197664,1750698653543,-490.0,0.00023267,2]
[367197665,1750698653552,-1102.28,0.00023267,2]
[367197666,1750698653561,-978.05,0.00023267,2]
[367197667,1750698653574,-1290.08,0.00023267,2]
[367197669,1750698653674,-490.0,0.00023267,2]
[367197670,1750698653684,-757.53,0.00023267,2]
[367197671,1750698653693,-490.0,0.00023267,2]
[367197672,1750698653703,-490.0,0.00023267,2]
[367197673,1750698653712,-6273.63,0.00023267,2]
[367197674,1750698653722,-490.0,0.00023267,2]
[367197675,1750698653731,-2190.49,0.00023267,2]
[367197676,1750698653741,-264.73795292,0.00023267,2]
[367197677,1750698653751,-693.85,0.00023267,2]
[367197678,1750698653760,-969.95,0.00023267,2]
[367197679,1750698653769,-844.27,0.00023267,2]
[367197680,1750698653778,-490.0,0.00023267,2]
[367197681,1750698653788,-1768.01,0.00023267,2]
[367197682,1750698653797,-490.0,0.00023267,2]
[367197683,1750698653807,-1033.79,0.00023267,2]
[367197684,1750698653816,-490.0,0.00023267,2]
[367197685,1750698653829,-2829.12,0.00023267,2]
[367197686,1750698653839,-490.0,0.00023267,2]
[367197687,1750698653848,-1421.12,0.00023267,2]
[367197688,1750698653857,-494.8286241,0.00023267,2]
[367197689,1750698653867,-3039.87,0.00023267,2]
[367197690,1750698653877,-490.0,0.00023267,2]
[367197691,1750698653886,-648.39,0.00023267,2]
[367197692,1750698653895,-648.39,0.00023267,2]
[367197693,1750698653904,-300.0,0.00023267,2]
[367197694,1750698653913,-300.0,0.00023267,2]
[367197695,1750698653923,-300.0,0.00023267,2]
[367197696,1750698653932,-300.0,0.00023267,2]
[367197697,1750698653941,-615.69,0.00023268,2]
[367197698,1750698653951,-628.6507772,0.00023268,2]
[367197699,1750698653960,-490.0,0.00023268,2]
[367197700,1750698653968,-490.0,0.00023268,2]
[367197701,1750698653977,-490.0,0.00023268,2]
[367197702,1750698653986,-490.0,0.00023268,2]
[367197703,1750698653996,-799.05,0.00023268,2]
[367197704,1750698654009,-490.0,0.00023268,2]
[367197705,1750698654022,-649.48,0.00023268,2]
[367197706,1750698654032,-490.0,0.00023268,2]
[367197707,1750698654044,-747.22,0.00023268,2]
[367197708,1750698654053,-510.0,0.00023268,2]
[367197709,1750698654062,-490.0,0.00023268,2]
[367197710,1750698654073,-582.61,0.00023268,2]
[367197711,1750698654082,-582.61,0.00023268,2]
[367197712,1750698654092,-1000.0,0.00023268,2]
[367197713,1750698654101,-1000.0,0.00023268,2]
[367197714,1750698654109,-1000.0,0.00023268,2]
[367197715,1750698654120,-1000.0,0.00023268,2]
[367197716,1750698654129,-1000.0,0.00023268,2]
[367197717,1750698654139,-1000.0,0.00023268,2]
[367197718,1750698654148,-1000.0,0.00023268,2]
[367197719,1750698654157,-1000.0,0.00023268,2]
[367197720,1750698654167,-1000.0,0.00023268,2]
[367197721,1750698654176,-1000.0,0.00023268,2]
[367197722,1750698654185,-1000.0,0.00023268,2]
[367197723,1750698654194,-1000.0,0.00023268,2]
[367197724,1750698654203,-547.7708296,0.00023268,2]
[367197725,1750698654212,-503.54666755,0.00023268,2]
[367197726,1750698654221,-150.0,0.00023268,2]
[367197727,1750698654230,-500.0,0.00023268,2]
[367197728,1750698654241,-490.0,0.00023268,2]
[367197729,1750698654250,-509.18422265,0.00023268,2]
[367197730,1750698654260,-500.0,0.00023268,2]
[367197731,1750698654268,-571.21,0.00023268,2]
[367197732,1750698654277,-490.0,0.00023268,2]
[367197733,1750698654286,-490.0,0.00023268,2]
[367197734,1750698654295,-490.0,0.00023268,2]
[367197735,1750698654305,-490.0,0.00023268,2]
[367197736,1750698654315,-490.0,0.00023268,2]
[367197737,1750698654327,-467.31240166,0.00023268,2]
[367197738,1750698654336,-1515.67,0.00023268,2]
[367197739,1750698654345,-1565.82,0.00023268,2]
[367197740,1750698654355,-151.0,0.00023268,7]
[367197741,1750698654364,-2422.44,0.00023268,2]
[367197742,1750698654374,-1311.67,0.00023268,2]
[367197743,1750698654383,-500.0,0.00023268,2]
[367197744,1750698654391,-1787.29,0.00023268,2]
[367197745,1750698654401,-490.0,0.00023268,2]
[367197746,1750698654410,-490.0,0.00023268,2]
[367197747,1750698654420,-2072.67,0.00023268,2]
[367197748,1750698654429,-490.0,0.00023268,2]
[367197749,1750698654438,-490.0,0.00023268,2]
[367197750,1750698654448,-490.0,0.00023268,2]
[367197751,1750698654457,-821.3,0.00023268,2]
[367197752,1750698654466,-1673.72,0.00023268,2]
[367197753,1750698654475,-2237.1,0.00023268,2]
[367197754,1750698654485,-1610.12,0.00023268,2]
[367197755,1750698654494,-1083.0,0.00023268,2]
[367197756,1750698654504,-1106.33,0.00023268,2]
[367197757,1750698654514,-490.0,0.00023268,2]
[367197758,1750698654523,-490.0,0.00023268,2]
[367197759,1750698654532,-490.0,0.00023268,2]
[367197760,1750698654542,-2050.62,0.00023268,2]
[367197761,1750698654552,-500.0,0.00023268,2]
[367197762,1750698654561,-1208.82,0.00023268,2]
[367197763,1750698654574,-498.0,0.00023268,2]
[367197764,1750698654583,-1726.23,0.00023268,2]
[367197765,1750698654593,-719.16,0.00023268,2]
[367197766,1750698654602,-490.0,0.00023268,2]
[367197767,1750698654612,-1608.26,0.00023268,2]
[367197768,1750698654622,-1628.29,0.00023268,2]